fUST/lending_fUST_20240614
["ID","MTS","AMOUNT","RATE_DAILY","PERIOD"]
[329410030,1718326242702,-306.43128038,0.00016438,2]
[329410031,1718326242717,-193.56871962,0.00016438,2]
[329410032,1718326242748,-424.89028038,0.00016438,2]
[329410034,1718326247117,-75.10971962,0.00016438,2]
[329410036,1718326247132,-500.0,0.00016438,2]
[329410037,1718326247143,-500.0,0.00016438,2]
[329410038,1718326247176,-500.0,0.00016438,2]
[329410039,1718326247251,-500.0,0.00016438,2]
[329410040,1718326247265,-500.0,0.00016438,2]
[329410041,1718326247295,-500.0,0.00016438,2]
[329410042,1718326247342,-500.0,0.00016438,2]
[329410043,1718326247372,-500.0,0.00016438,2]
[329410044,1718326247411,-502.00481864,0.00016438,2]
[329410045,1718326247438,-505.65299135,0.00016438,2]
[329410046,1718326247474,-526.40202534,0.00016438,2]
[329410047,1718326247493,-500.0,0.00016438,2]
[329410048,1718326247507,-500.0,0.00016438,2]
[329410049,1718326247528,-500.0,0.00016438,2]
[329410050,1718326247550,-399.53,0.00016438,2]
[329410051,1718326247579,-207.00312676,0.00016438,2]
[329410052,1718326247610,-500.0,0.00016438,2]
[329410053,1718326247621,-636.91946243,0.00016438,2]
[329410054,1718326247632,-500.0,0.00016438,2]
[329410055,1718326247643,-500.0,0.00016438,2]
[329410056,1718326247681,-500.0,0.00016438,2]
[329410057,1718326247713,-500.0,0.00016438,2]
[329410058,1718326247749,-500.0,0.00016438,2]
[329410059,1718326247804,-500.0,0.00016438,2]
[329410060,1718326247838,-683.22,0.00016438,2]
[329410061,1718326247918,-500.0,0.00016438,2]
[329410062,1718326247939,-772.95,0.00016438,2]
[329410063,1718326247988,-346.62127947,0.00016438,2]
[329410064,1718326248036,-500.0,0.00016438,2]
[329410065,1718326248072,-500.0,0.00016438,2]
[329410066,1718326248090,-500.0,0.00016438,2]
[329410067,1718326248116,-165.78,0.00016438,2]
[329410068,1718326248136,-1000.0,0.00016438,2]
[329410069,1718326248169,-1000.0,0.00016438,2]
[329410070,1718326248193,-1000.0,0.00016438,2]
[329410071,1718326248226,-1000.0,0.00016438,2]
[329410072,1718326248248,-1000.0,0.00016438,2]
[329410073,1718326248273,-1000.0,0.00016438,2]
[329410074,1718326248292,-1000.0,0.00016438,2]
[329410075,1718326248319,-1000.0,0.00016438,2]
[329410076,1718326248362,-995.715086,0.00016438,2]
[329410077,1718326248383,-1251.66,0.00016438,2]
[329410078,1718326248444,-500.0,0.00016438,2]
[329410079,1718326248502,-500.0,0.00016438,2]
[329410080,1718326248536,-341.33,0.00016438,2]
[329410081,1718326248583,-500.0,0.00016438,2]
[329410082,1718326248624,-1848.58,0.00016438,2]
[329410083,1718326248654,-500.0,0.00016438,2]
[329410084,1718326248677,-500.0,0.00016438,2]
[329410085,1718326248697,-500.0,0.00016438,2]
[329410086,1718326248716,-509.8123844,0.00016438,2]
[329410087,1718326248727,-500.0,0.00016438,2]
[329410089,1718326248776,-500.0,0.00016438,2]
[329410091,1718326248793,-500.0,0.00016438,2]
[329410093,1718326248807,-500.49382646,0.00016438,2]
[329410095,1718326248828,-3096.01,0.00016438,2]
[329410096,1718326248840,-500.0,0.00016438,2]
[329410097,1718326248851,-1836.59,0.00016438,2]
[329410098,1718326248863,-500.0,0.00016438,2]
[329410099,1718326248882,-500.0,0.00016438,2]
[329410100,1718326248925,-151.0,0.00016438,2]
[329410101,1718326248941,-151.0,0.00016438,2]
[329410103,1718326248958,-151.0,0.00016438,2]
[329410106,1718326248970,-151.0,0.00016438,2]
[329410107,1718326248996,-151.0,0.00016438,2]
[329410109,1718326249024,-500.0,0.00016438,2]
[329410111,1718326249036,-1693.91,0.00016438,2]
[329410112,1718326249057,-151.0,0.00016438,2]
[329410115,1718326249081,-151.0,0.00016438,2]
[329410118,1718326249100,-183.934467,0.00016438,2]
[329410119,1718326249152,-151.0,0.00016438,2]
[329410121,1718326249173,-151.0,0.00016438,2]
[329410123,1718326249196,-500.0,0.00016438,2]
[329410127,1718326249240,-500.0,0.00016438,2]
[329410129,1718326249257,-500.0,0.00016438,2]
[329410130,1718326249282,-500.0,0.00016438,2]
[329410132,1718326249297,-1000.02,0.00016438,2]
[329410134,1718326249332,-151.0,0.00016438,2]
[329410136,1718326249343,-151.0,0.00016438,2]
[329410137,1718326249362,-151.0,0.00016438,2]
[329410140,1718326249410,-151.0,0.00016438,2]
[329410141,1718326249424,-500.0,0.00016438,2]
[329410144,1718326249452,-151.0,0.00016438,2]
[329410148,1718326249551,-500.0,0.00016438,2]
[329410150,1718326249564,-151.0,0.00016438,2]
[329410152,1718326249577,-151.0,0.00016438,2]
[329410154,1718326249589,-221.852352,0.00016438,2]
[329410156,1718326249610,-929.71,0.00016438,2]
[329410158,1718326249677,-1721.35,0.00016438,2]
[329410159,1718326249700,-500.0,0.00016438,2]
[329410161,1718326249711,-500.0,0.00016438,2]
[329410163,1718326249753,-500.0,0.00016438,2]
[329410166,1718326249774,-500.0,0.00016438,2]
[329410168,1718326249784,-2230.34,0.00016438,2]
[329410170,1718326249798,-2399.78,0.00016438,2]
[329410172,1718326249826,-638.32,0.00016438,2]
[329410174,1718326249840,-500.0,0.00016438,2]
[329410176,1718326249857,-500.0,0.00016438,2]
[329410177,1718326249876,-500.0,0.00016438,2]
[329410179,1718326249909,-500.0,0.00016438,2]
[329410181,1718326249920,-500.0,0.00016438,2]
[329410183,1718326249934,-500.0,0.00016438,2]
[329410184,1718326249952,-500.0,0.00016438,2]
[329410191,1718326250161,-500.0,0.00016438,2]
[329410193,1718326250183,-500.0,0.00016438,2]
[329410194,1718326250197,-1744.22893372,0.00016438,2]
[329410210,1718326250579,-375.21207651,0.00016438,2]
[329410225,1718326250814,-394.24290711,0.00016437,2]
[329410226,1718326250836,-156.39921591,0.00016438,2]
[329410228,1718326250874,-1484.17977386,0.00016438,2]
[329410230,1718326250886,-500.0,0.00016438,2]
[329410233,1718326250908,-500.0,0.00016438,2]
[329410235,1718326250925,-1297.67,0.00016438,2]
[329410237,1718326250952,-151.0,0.00016438,2]
[329410239,1718326250963,-151.0,0.00016438,2]
[329410241,1718326250976,-53329.5678828,0.00016438,2]
[329410243,1718326250989,-1569.660015,0.00016438,2]
[329410245,1718326251000,-1569.660015,0.00016438,2]
[329410246,1718326251018,-1569.660015,0.00016438,2]
[329410248,1718326251028,-1569.660015,0.00016438,2]
[329410250,1718326251059,-1569.660015,0.00016438,2]
[329410252,1718326251085,-615.28914284,0.00016438,2]
[329413941,1718326583749,267.63024777,9.999e-05,7]
[329413963,1718327454297,-178.05273453,0.00015391,2]
[329414005,1718327607346,1000.0,0.00014,2]
[329420927,1718329045954,299.0,0.000265,120]
[329420928,1718329243819,200.0,0.00025,60]
[329420936,1718329736232,-382.87917013,0.00014653,2]
[329420937,1718329736349,-382.87917013,0.00014653,2]
[329420938,1718329736721,-382.87917013,0.00014653,2]
[329420939,1718329762363,-282.72292598,0.00014485,2]
[329421083,1718329835617,-412.60757393,0.00014396,2]
[329421085,1718329835642,-107.54164307,0.00014396,2]
[329421086,1718329835655,-72.88819612,0.00014485,2]
[329421088,1718329835682,-555.12095839,0.00014653,2]
[329421089,1718329835701,-892.41994913,0.00014653,2]
[329421090,1718329835717,-2436.42101802,0.00014653,2]
[329421091,1718329835728,-3851.8400062,0.00014654,2]
[329421092,1718329835739,-300.0,0.00014946,2]
[329421093,1718329835759,-300.0,0.00014946,2]
[329421094,1718329835780,-21866.7592777,0.00014947,2]
[329421095,1718329835795,-1721.8174982,0.00015627,2]
[329421096,1718329835814,-153.5866902,0.000157,2]
[329421097,1718329835864,-306.4365224,0.000157,2]
[329421098,1718329835890,-410.716237,0.000157,2]
[329421099,1718329835904,-11444.40799371,0.00016,2]
[329421110,1718329836135,-5834.68073492,0.00016,2]
[329421113,1718329836158,-1471.46172104,0.00016,2]
[329421114,1718329836169,-114.7544577,0.00016,2]
[329421115,1718329836184,-38.2455423,0.00016,2]
[329421116,1718329836207,-153.0,0.00016,2]
[329421117,1718329836225,-456.6691874,0.00016,2]
[329421118,1718329836237,-200.63352294,0.00016,2]
[329421556,1718329847113,-4.77303996,0.00016,2]
[329421557,1718329847130,-153.0,0.00016,2]
[329421559,1718329847144,-205.4065629,0.00016,2]
[329421560,1718329847157,-153.0,0.00016,2]
[329421562,1718329847178,-205.4065629,0.00016,2]
[329421563,1718329847194,-153.0,0.00016,2]
[329421564,1718329847210,-153.0,0.00016,2]
[329421565,1718329847233,-176.7798382,0.00016,2]
[329421566,1718329847268,-205.1550557,0.00016,2]
[329421567,1718329847279,-205.3436861,0.00016,2]
[329421568,1718329847298,-120.08059861,0.00016164,2]
[329421702,1718329850556,-300.0,0.00016164,2]
[329425602,1718329924231,10000.0,0.00025,60]
[329425670,1718329932732,10000.0,0.00025,60]
[329425671,1718329942462,10000.0,0.000265,120]
[329425672,1718329948835,10000.0,0.00025,60]
[329425673,1718329958005,6250.4,0.00025,60]
[329425677,1718331032327,659.89,0.00010959,2]
[329425693,1718331035251,-386.01217285,0.000152,2]
[329425694,1718331035274,-2409.87640267,0.000152,2]
[329425695,1718331035287,-300.0,0.000152,2]
[329425696,1718331035324,-300.0,0.000152,2]
[329425697,1718331035348,-4714.74983536,0.00015201,2]
[329425842,1718331048574,-679.23975741,0.00015201,2]
[329425909,1718331049928,-3372.25101783,0.00015201,2]
[329425910,1718331049969,-260.074609,0.00015287,2]
[329425913,1718331049992,-452.789929,0.00016164,2]
[329425916,1718331050047,-171.052345,0.00016185,2]
[329425917,1718331050061,-297.688804,0.00016185,2]
[329425919,1718331050085,-167.304852,0.00016185,2]
[329425921,1718331050101,-294.468373,0.00016185,2]
[329425923,1718331050119,-150.591,0.00016347,2]
[329425925,1718331050131,-593.0,0.000164,2]
[329425927,1718331050147,-890.7261,0.000164,2]
[329425930,1718331050178,-394.28367128,0.000164,2]
[329425932,1718331050204,-249.77915374,0.00016436,2]
[329425934,1718331050227,-749.52653641,0.00016436,7]
[329426024,1718331053865,166.57,0.00010959,2]
[329426025,1718331064658,832.89,0.00010959,2]
[329426026,1718331075536,454.3,0.00010959,2]
[329426027,1718331096598,454.32,0.00010959,2]
[329426028,1718331264414,227.15,0.00010959,2]
[329426029,1718331285664,347.03,0.00010959,2]
[329426030,1718331306885,788.75,0.00010959,2]
[329426031,1718331449696,155.00465014,9.999e-05,2]
[329426032,1718331462589,1996.09999096,9.999e-05,2]
[329426033,1718331477163,1984.88777217,9.999e-05,2]
[329426034,1718331486313,928.0043886,9.999e-05,2]
[329426035,1718331932884,216.4465021,9.999e-05,2]
[329426036,1718331957000,2184.55867248,0.0001,2]
[329426105,1718332241064,-2795.88857552,0.00014339,2]
[329426106,1718332241078,-300.0,0.00014339,2]
[329426107,1718332241107,-23317.0171108,0.0001434,2]
[329426108,1718332241121,-223.649891,0.00014355,2]
[329426109,1718332241135,-1101.38897881,0.00015,2]
[329426110,1718332241149,-1052.76575644,0.00015278,2]
[329426112,1718332241165,-4188.57816845,0.00015378,2]
[329426113,1718332241178,-216.84612142,0.00015378,2]
[329426114,1718332241192,-40056.93628216,0.0001538,2]
[329426115,1718332241209,-293.0,0.00015772,2]
[329426116,1718332241240,-430.150432,0.00016164,2]
[329426117,1718332241257,-306.6086377,0.000162,2]
[329426118,1718332241272,-154.5621653,0.000162,2]
[329426119,1718332241286,-153.0,0.000162,2]
[329426120,1718332241298,-153.0,0.000162,2]
[329426121,1718332241310,-153.0,0.000162,2]
[329426122,1718332241329,-394.28367128,0.000164,2]
[329426123,1718332241347,-890.0,0.000164,2]
[329426124,1718332241358,-1305.70367599,0.00016418,2]
[329426125,1718332241384,-710.290127,0.00016418,2]
[329426126,1718332241425,-710.290127,0.00016418,2]
[329426127,1718332241445,-525.79525719,0.00016434,2]
[329426128,1718332241459,-182.24388919,0.00016434,2]
[329426129,1718332241475,-300.22015685,0.00016434,2]
[329426130,1718332241512,-2419.71806886,0.00016434,2]
[329426131,1718332241524,-264.92536846,0.00016434,2]
[329426132,1718332241542,-155.38506212,0.00016434,2]
[329426133,1718332241566,-1071.98501587,0.00016434,2]
[329426134,1718332241578,-233.45708601,0.00016434,2]
[329426135,1718332241600,-250.32677278,0.00016434,2]
[329426136,1718332241617,-155.49493238,0.00016434,2]
[329426137,1718332241632,-1891.00414279,0.00016434,2]
[329426138,1718332241644,-1650.60283409,0.00016434,2]
[329426139,1718332241658,-200.13194437,0.00016434,2]
[329426140,1718332241672,-243.7884857,0.00016434,2]
[329426141,1718332241688,-167.8773273,0.00016434,2]
[329426142,1718332241700,-184.25909174,0.00016434,2]
[329426143,1718332241717,-710.290127,0.00016434,2]
[329426144,1718332241745,-710.290127,0.00016434,2]
[329426145,1718332241758,-710.290127,0.00016434,2]
[329426146,1718332241769,-710.290127,0.00016434,2]
[329426147,1718332241782,-151.0,0.00016434,2]
[329426148,1718332241799,-151.0,0.00016434,2]
[329426149,1718332241812,-151.0,0.00016434,2]
[329426150,1718332241823,-151.0,0.00016434,2]
[329426151,1718332241834,-481.58257431,0.00016435,2]
[329426152,1718332241851,-6354.58980396,0.00016435,2]
[329426153,1718332241879,-710.290127,0.00016435,2]
[329426154,1718332241891,-710.290127,0.00016435,2]
[329426155,1718332241902,-151.0,0.00016435,2]
[329426156,1718332241930,-884.90592779,0.00016436,7]
[329426157,1718332241949,-312.84361794,0.00016436,10]
[329426158,1718332241962,-1441.23601454,0.00016436,2]
[329426159,1718332241973,-352.40404125,0.00016436,2]
[329426160,1718332241987,-554.06838935,0.00016436,2]
[329426161,1718332241999,-282.86996446,0.00016436,2]
[329426162,1718332242011,-2649.63917296,0.00016436,2]
[329426163,1718332242022,-195.4542316,0.00016436,2]
[329426164,1718332242044,-155.35976746,0.00016436,2]
[329426165,1718332242076,-10572.48722188,0.00016436,2]
[329426166,1718332242116,-156.30409659,0.00016436,2]
[329426167,1718332242132,-9615.65941417,0.00016436,2]
[329426168,1718332242164,-21889.51782672,0.00016436,2]
[329426169,1718332242190,-242.16700582,0.00016436,2]
[329426170,1718332242205,-1345.11189609,0.00016436,2]
[329426171,1718332242222,-762.90839545,0.00016436,2]
[329426172,1718332242236,-517.05203037,0.00016436,2]
[329426173,1718332242251,-531.6949165,0.00016436,2]
[329426174,1718332242265,-725.74862734,0.00016436,2]
[329426175,1718332242284,-710.290127,0.00016436,2]
[329426176,1718332242309,-710.290127,0.00016436,2]
[329426177,1718332242322,-710.290127,0.00016436,2]
[329426178,1718332242333,-710.290127,0.00016436,2]
[329426179,1718332242348,-710.290127,0.00016436,2]
[329426180,1718332242366,-710.290127,0.00016436,2]
[329426181,1718332242383,-710.290127,0.00016436,2]
[329426182,1718332242402,-710.290127,0.00016436,2]
[329426183,1718332242414,-710.290127,0.00016436,2]
[329426184,1718332242426,-710.290127,0.00016436,2]
[329426185,1718332242437,-1018.25988768,0.00016436,2]
[329426186,1718332242450,-187.079921,0.00016436,2]
[329426187,1718332242465,-267.32581134,0.00016437,7]
[329426188,1718332242480,-46734.53264997,0.00016437,2]
[329426189,1718332242497,-710.290127,0.00016437,2]
[329426190,1718332242511,-710.290126,0.00016437,2]
[329426191,1718332242527,-374.0517974,0.00016438,2]
[329426192,1718332242550,-530.4623539,0.00016438,2]
[329426193,1718332242562,-505.43893149,0.00016438,2]
[329426194,1718332242581,-497.30310668,0.00016438,2]
[329426195,1718332242594,-155.1340032,0.00016438,2]
[329426196,1718332242611,-503.99431341,0.00016438,2]
[329426197,1718332242627,-500.0,0.00016438,2]
[329426198,1718332242650,-500.0,0.00016438,2]
[329426199,1718332242674,-500.0,0.00016438,2]
[329426200,1718332242690,-500.0,0.00016438,2]
[329426201,1718332242703,-508.51141671,0.00016438,2]
[329426202,1718332242720,-500.0,0.00016438,2]
[329426203,1718332242749,-500.0,0.00016438,2]
[329426204,1718332242780,-499.89028355,0.00016438,2]
[329426205,1718332242794,-500.0,0.00016438,2]
[329426206,1718332242815,-500.0,0.00016438,2]
[329426207,1718332242834,-508.25223062,0.00016438,2]
[329426208,1718332242855,-500.0,0.00016438,2]
[329426209,1718332242867,-500.0,0.00016438,2]
[329426210,1718332242918,-500.0,0.00016438,2]
[329426211,1718332242942,-500.0,0.00016438,2]
[329426212,1718332242963,-500.0,0.00016438,2]
[329426213,1718332242979,-397.8567891,0.00016438,2]
[329426214,1718332242998,-1315.48,0.00016438,2]
[329426215,1718332243196,-510.23524064,0.00016438,2]
[329426216,1718332243231,-2975.71,0.00016438,2]
[329426217,1718332243248,-500.0,0.00016438,2]
[329426218,1718332243260,-500.0,0.00016438,2]
[329426219,1718332243274,-1774.8,0.00016438,2]
[329426220,1718332243288,-500.0,0.00016438,2]
[329426221,1718332243322,-1110.21,0.00016438,2]
[329426222,1718332243373,-500.0,0.00016438,2]
[329426223,1718332243400,-500.0,0.00016438,2]
[329426224,1718332243421,-500.0,0.00016438,2]
[329426225,1718332243432,-959.9,0.00016438,2]
[329426226,1718332243458,-1699.69,0.00016438,2]
[329426227,1718332243475,-500.0,0.00016438,2]
[329426228,1718332243496,-500.0,0.00016438,2]
[329426229,1718332243509,-500.0,0.00016438,2]
[329426230,1718332243522,-2140.45,0.00016438,2]
[329426231,1718332243536,-500.0,0.00016438,2]
[329426233,1718332243549,-1673.3,0.00016438,2]
[329426234,1718332243560,-892.36,0.00016438,2]
[329426235,1718332243577,-500.0,0.00016438,2]
[329426236,1718332243599,-500.0,0.00016438,2]
[329426237,1718332243625,-2517.6,0.00016438,2]
[329426238,1718332243638,-500.0,0.00016438,2]
[329426239,1718332243659,-510.68261473,0.00016438,2]
[329426240,1718332243678,-705.01,0.00016438,2]
[329426241,1718332243697,-500.0,0.00016438,2]
[329426242,1718332243748,-500.0,0.00016438,2]
[329426243,1718332243769,-3790.68,0.00016438,2]
[329426245,1718332243797,-778.49,0.00016438,2]
[329426247,1718332243824,-500.0,0.00016438,2]
[329426248,1718332243873,-1244.81,0.00016438,2]
[329426249,1718332243887,-500.0,0.00016438,2]
[329426250,1718332243913,-565.96366573,0.00016438,2]
[329426251,1718332243925,-500.0,0.00016438,2]
[329426252,1718332243954,-151.0,0.00016438,2]
[329426253,1718332243967,-151.0,0.00016438,2]
[329426255,1718332243981,-226.577922,0.00016438,2]
[329426256,1718332243992,-1148.36503,0.00016438,2]
[329426257,1718332244004,-1148.36503,0.00016438,2]
[329426258,1718332244015,-1148.36503,0.00016438,2]
[329426259,1718332244026,-1148.36503,0.00016438,2]
[329426260,1718332244040,-1148.36503,0.00016438,2]
[329426261,1718332244050,-1148.36503,0.00016438,2]
[329426262,1718332244073,-1148.36503,0.00016438,2]
[329426263,1718332244084,-1148.36503,0.00016438,2]
[329426264,1718332244111,-1148.36503,0.00016438,2]
[329426265,1718332244124,-1148.36503,0.00016438,2]
[329426266,1718332244153,-1148.36503,0.00016438,2]
[329426267,1718332244174,-1148.36503,0.00016438,2]
[329426268,1718332244197,-1148.36503,0.00016438,2]
[329426269,1718332244215,-1148.36503,0.00016438,2]
[329426270,1718332244230,-1148.36503,0.00016438,2]
[329426271,1718332244260,-1148.36503,0.00016438,2]
[329426272,1718332244272,-1148.36503,0.00016438,2]
[329426273,1718332244303,-1148.36503,0.00016438,2]
[329426274,1718332244320,-1148.36503,0.00016438,2]
[329426275,1718332244336,-1148.365031,0.00016438,2]
[329426276,1718332244353,-635.13342844,0.000165,2]
[329426277,1718332244366,-334.609703,0.0001656,2]
[329426278,1718332244385,-294.468373,0.0001656,2]
[329426279,1718332244403,-990.74343531,0.00016596,2]
[329426280,1718332244414,-1000.0,0.00016656,2]
[329426281,1718332244437,-468.25169223,0.00016703,2]
[329426282,1718332244452,-287.23906859,0.00016706,2]
[329426283,1718332244464,-155.65674179,0.00016706,2]
[329426284,1718332244475,-188.91077945,0.00016706,2]
[329426285,1718332244490,-199.96578457,0.00016706,2]
[329426286,1718332244505,-948.62548544,0.00016706,2]
[329426287,1718332244516,-156.25716758,0.00016707,2]
[329426288,1718332244529,-2482.76181413,0.00016707,2]
[329426289,1718332244557,-156.94118133,0.00016707,2]
[329426290,1718332244576,-3133.64727444,0.00016709,2]
[329426291,1718332244591,-452.38863648,0.00016712,2]
[329426292,1718332244603,-227.50232826,0.00016712,2]
[329426293,1718332244634,-500.0,0.00016712,2]
[329426294,1718332244644,-500.0,0.00016712,2]
[329426295,1718332244655,-500.0,0.00016712,2]
[329426296,1718332244667,-500.0,0.00016712,2]
[329426297,1718332244684,-500.0,0.00016712,2]
[329426298,1718332244697,-500.0,0.00016712,2]
[329426299,1718332244707,-417.95278672,0.00016712,2]
[329426300,1718332244721,-219.02990975,0.00016712,2]
[329426301,1718332244740,-500.0,0.00016712,2]
[329426302,1718332244755,-500.0,0.00016712,2]
[329426303,1718332244768,-1315.48,0.00016712,2]
[329426304,1718332244782,-2975.71,0.00016712,2]
[329426305,1718332244804,-500.0,0.00016712,2]
[329426306,1718332244814,-500.0,0.00016712,2]
[329426307,1718332244843,-1774.8,0.00016712,2]
[329426308,1718332244856,-500.0,0.00016712,2]
[329426309,1718332244868,-1110.21,0.00016712,2]
[329426310,1718332244882,-254.40317847,0.00016712,2]
[329426311,1718332244911,-500.0,0.00016712,2]
[329426312,1718332244932,-500.0,0.00016712,2]
[329426313,1718332244951,-959.9,0.00016712,2]
[329426314,1718332244963,-1699.69,0.00016712,2]
[329426315,1718332244974,-500.0,0.00016712,2]
[329426316,1718332244987,-515.14100217,0.00016712,2]
[329426317,1718332244998,-500.0,0.00016712,2]
[329426318,1718332245020,-2140.45,0.00016712,2]
[329426319,1718332245032,-500.0,0.00016712,2]
[329426320,1718332245078,-1673.3,0.00016712,2]
[329426321,1718332245090,-892.36,0.00016712,2]
[329426322,1718332245107,-500.0,0.00016712,2]
[329426323,1718332245128,-500.0,0.00016712,2]
[329426324,1718332245148,-2517.6,0.00016712,2]
[329426326,1718332245167,-705.01,0.00016712,2]
[329426329,1718332245191,-500.0,0.00016712,2]
[329426332,1718332245211,-500.0,0.00016712,2]
[329426334,1718332245233,-3790.68,0.00016712,2]
[329426335,1718332245255,-778.49,0.00016712,2]
[329426336,1718332245266,-500.0,0.00016712,2]
[329426337,1718332245280,-1244.81,0.00016712,2]
[329426338,1718332245291,-500.0,0.00016712,2]
[329426339,1718332245303,-500.0,0.00016712,2]
[329426340,1718332245314,-488.01671638,0.0001673,2]
[329426341,1718332245325,-1000.0,0.00016739,2]
[329426342,1718332245337,-1000.0,0.00016744,2]
[329426343,1718332245348,-334.609703,0.00016762,2]
[329426345,1718332245363,-294.468373,0.00016762,2]
[329426346,1718332245378,-1000.0,0.00016775,2]
[329426347,1718332245397,-300.0,0.000168,6]
[329426348,1718332245408,-1000.0,0.00016812,2]
[329426349,1718332245419,-500.0,0.00016816,2]
[329426350,1718332245434,-1000.0,0.00016821,2]
[329426351,1718332245459,-1000.0,0.00016839,2]
[329426352,1718332245469,-1000.0,0.00016855,2]
[329426353,1718332245485,-1000.0,0.0001689,2]
[329426354,1718332245501,-5511.25322606,0.000169,2]
[329426355,1718332245519,-1000.0,0.00016919,2]
[329426356,1718332245535,-459.38479711,0.00016926,2]
[329426357,1718332245547,-334.609703,0.00016964,2]
[329426358,1718332245558,-294.468373,0.00016964,2]
[329426359,1718332245588,-518.70324774,0.00016986,2]
[329426360,1718332245605,-500.0,0.00016986,2]
[329426361,1718332245619,-500.0,0.00016986,2]
[329426362,1718332245632,-500.0,0.00016986,2]
[329426363,1718332245655,-500.0,0.00016986,2]
[329426364,1718332245670,-500.0,0.00016986,2]
[329426365,1718332245685,-500.0,0.00016986,2]
[329426366,1718332245698,-500.0,0.00016986,2]
[329426367,1718332245710,-1315.48,0.00016986,2]
[329426369,1718332245723,-2975.71,0.00016986,2]
[329426371,1718332245744,-500.0,0.00016986,2]
[329426372,1718332245757,-500.0,0.00016986,2]
[329426373,1718332245784,-1774.8,0.00016986,2]
[329426374,1718332245797,-500.0,0.00016986,2]
[329426375,1718332245824,-1110.21,0.00016986,2]
[329426376,1718332245838,-500.0,0.00016986,2]
[329426377,1718332245872,-500.0,0.00016986,2]
[329426379,1718332245905,-959.9,0.00016986,2]
[329426381,1718332245918,-1699.69,0.00016986,2]
[329426383,1718332245939,-500.0,0.00016986,2]
[329426384,1718332245949,-500.0,0.00016986,2]
[329426386,1718332245966,-2140.45,0.00016986,2]
[329426388,1718332245978,-500.0,0.00016986,2]
[329426390,1718332245989,-1673.3,0.00016986,2]
[329426392,1718332246002,-892.36,0.00016986,2]
[329426394,1718332246012,-500.0,0.00016986,2]
[329426395,1718332246023,-500.0,0.00016986,2]
[329426396,1718332246035,-2517.6,0.00016986,2]
[329426397,1718332246046,-705.01,0.00016986,2]
[329426398,1718332246063,-500.0,0.00016986,2]
[329426399,1718332246076,-500.0,0.00016986,2]
[329426400,1718332246089,-3790.68,0.00016986,2]
[329426401,1718332246120,-778.49,0.00016986,2]
[329426402,1718332246158,-500.0,0.00016986,2]
[329426403,1718332246169,-1244.81,0.00016986,2]
[329426404,1718332246181,-500.0,0.00016986,2]
[329426405,1718332246196,-500.0,0.00016986,2]
[329426406,1718332246214,-167.304851,0.00016994,2]
[329426407,1718332246227,-167.304852,0.00016994,2]
[329426408,1718332246239,-151.0,0.00017185,2]
[329426409,1718332246250,-500.0,0.0001726,2]
[329426410,1718332246268,-500.0,0.0001726,2]
[329426411,1718332246305,-500.0,0.0001726,2]
[329426412,1718332246353,-500.0,0.0001726,2]
[329426413,1718332246368,-572.82423373,0.0001726,2]
[329426414,1718332246381,-500.0,0.0001726,2]
[329426415,1718332246406,-500.0,0.0001726,2]
[329426416,1718332246423,-1315.48,0.0001726,2]
[329426417,1718332246437,-2975.71,0.0001726,2]
[329426418,1718332246449,-500.0,0.0001726,2]
[329426419,1718332246499,-500.0,0.0001726,2]